bitfinex-derivatives/quotes_ETHF0:USTF0_20250614
["timestamp","ask_amount","ask_price","bid_price","bid_amount"]
[1749887477777,0.6735,2540.0,2539.7,31.3697]
[1749887477778,0.47223,2540.0,2539.7,31.3697]
[1749887478075,0.47223,2540.0,2539.8,1.3141]
[1749887478379,0.47223,2540.0,2539.9,23.912]
[1749887478779,1.52094693,2540.0,2539.9,27.1198]
[1749887479079,1.52094693,2540.0,2539.9,27.1188]
[1749887480280,1.52094693,2540.0,2539.9,3.2078]
[1749887480576,0.47228,2539.7,2539.6,9.35670029]
[1749887481176,0.47228,2539.7,2539.6,33.26770029]
[1749887481982,0.47228,2539.7,2539.6,3.21370029]
[1749887484177,0.47228,2539.7,2539.6,0.00590029]
[1749887488785,1.52040316,2539.7,2539.6,0.00590029]
[1749887490085,0.47228,2539.7,2539.6,0.00590029]
[1749887490285,0.54036268,2539.8,2539.6,0.00590029]
[1749887490581,0.47228,2539.7,2539.6,0.65840029]
[1749887494985,6.22922344,2540.6,2539.6,3.86620029]
[1749887495175,0.47221,2540.1,2539.9,3.68003]
[1749887495385,0.4722,2540.2,2540.0,25.2119]
[1749887496188,0.4722,2540.1,2540.0,25.2119]
[1749887498587,0.4722,2540.2,2540.0,25.68412]
[1749887498884,0.47218,2540.2,2540.1,6.143]
[1749887499083,0.54027268,2540.2,2540.1,6.143]
[1749887499983,0.47218,2540.2,2540.1,6.143]
[1749887501891,0.4722,2540.1,2540.0,1.2969]
[1749887502094,0.4722,2540.1,2540.0,31.3529]
[1749887503289,0.4722,2540.1,2540.0,32.6044]
[1749887504283,5.1346,2540.6,2540.0,32.6044]
[1749887504488,0.47218,2540.2,2540.1,1.2515]
[1749887507193,0.47218,2540.2,2540.1,4.4593]
[1749887508697,0.47218,2540.2,2540.1,34.5143]
[1749887509197,0.47218,2540.3,2540.1,34.5143]
[1749887509394,0.47217,2540.3,2540.2,1.3519]
[1749887510098,3.2078,2540.7,2540.2,1.3519]
[1749887510399,3.6799,2540.7,2540.5,0.47212]
[1749887510697,3.6799,2540.7,2540.6,24.5917]
[1749887510899,3.6799,2540.7,2540.6,26.5856]
[1749887511600,0.4721,2540.7,2540.6,26.5856]
[1749887523507,0.00590029,2540.8,2540.7,0.47209]
[1749887523711,0.00590029,2540.8,2540.7,5.03169]
[1749887525804,0.00590029,2540.8,2540.7,10.03169]
[1749887526006,0.472,2541.2,2541.0,0.47202]
[1749887526206,0.472,2541.2,2541.1,32.6802]
[1749887527709,0.47199,2541.3,2541.1,33.15221]
[1749887527914,0.47199,2541.3,2541.2,1.3526]
[1749887529115,0.00590029,2541.4,2541.2,1.3526]
[1749887529412,0.47786029,2541.4,2541.3,23.905]
[1749887530713,0.472,2541.2,2541.1,1.2814]
[1749887530910,0.472,2541.2,2541.1,31.3244]
[1749887531106,0.472,2541.2,2541.1,32.5785]
[1749887532421,0.47199,2541.3,2541.1,33.05052]
[1749887532615,0.472,2541.2,2541.1,32.5785]
[1749887535325,0.00590029,2541.4,2541.2,0.47199]
[1749887535535,0.00590029,2541.4,2541.3,27.58178]
[1749887536527,0.00590029,2541.4,2541.3,27.1098]
[1749887536826,0.00590029,2541.4,2541.3,27.58178]
[1749887537026,0.00590029,2541.4,2541.3,28.90548]
[1749887539629,0.07399297,2541.4,2541.3,28.90548]
[1749887541829,0.07399297,2541.4,2541.3,69.70548]
[1749887545530,0.07399297,2541.4,2541.3,75.83748]
[1749887550535,0.07399297,2541.4,2541.3,45.3315]
[1749887550744,0.47203,2541.1,2540.9,3.21370029]
[1749887550933,0.47203,2541.1,2541.0,30.032]
[1749887552039,0.47204,2541.0,2540.9,3.21370029]
[1749887552342,0.47204,2541.0,2540.9,33.24570029]
[1749887554440,0.47203,2541.1,2540.9,33.24570029]
[1749887554733,2.6605,2541.3,2540.9,33.24570029]
[1749887554939,1.3734,2541.2,2540.9,33.24570029]
[1749887555239,0.47203,2541.0,2540.9,33.24570029]
[1749887555842,0.47203,2541.0,2540.9,3.21370029]
[1749887556030,0.47203,2541.0,2540.9,27.10970029]
[1749887556235,1.84543,2541.0,2540.9,27.10970029]
[1749887557242,1.84543,2541.0,2540.9,3.21370029]
[1749887557438,1.84543,2541.0,2540.9,27.11070029]
[1749887558240,1.84543,2541.0,2540.9,3.21370029]
[1749887558543,7.88907623,2541.0,2540.9,0.00590029]
[1749887563953,0.47215,2540.4,2540.3,6.139]
[1749887564948,0.47216,2540.3,2540.2,3.2078]
[1749887566245,0.47218,2540.2,2540.1,0.00590029]
[1749887566440,1.79718,2540.2,2540.1,0.00590029]
[1749887566642,1.18051,2540.1,2539.5,3.2078]
[1749887566843,0.4723,2539.6,2539.5,3.2078]
[1749887569245,0.00590029,2539.8,2539.5,3.2078]
[1749887569451,0.47228,2539.7,2539.6,0.6717]
[1749887570951,0.4723,2539.6,2539.5,3.2078]
[1749887571143,0.54039268,2539.6,2539.5,3.2078]
[1749887571348,0.47231,2539.5,2539.4,1.3229]
[1749887578551,1.15281,2539.5,2539.4,0.6717]
[1749887580558,0.47233,2539.4,2539.3,0.00590029]
[1749887583460,3.68013,2539.4,2539.3,0.00590029]
[1749887583764,0.47239,2539.1,2539.0,1.3356]
[1749887584365,0.47241,2539.0,2538.9,0.6711]
[1749887586161,0.47241,2539.0,2538.9,1.9373]
[1749887592469,0.47243,2538.9,2538.8,0.6803]
[1749887593571,1.5169163,2538.9,2538.8,0.6803]
[1749887594464,0.47244,2538.8,2538.7,0.6889335]
[1749887594665,1.5169263,2538.8,2538.7,0.6889335]
[1749887596373,1.5169263,2538.8,2538.7,0.0039335]
[1749887598265,4.7247263,2538.8,2538.7,0.0039335]
[1749887598671,0.47248,2538.6,2538.5,0.6872]
[1749887598972,1.5169663,2538.6,2538.5,0.6872]
[1749887602878,1.5169663,2538.6,2538.5,2.026]
[1749887606980,1.5169663,2538.6,2538.5,0.6872]
[1749887611683,0.47248,2538.6,2538.5,0.6872]
[1749887611981,1.51708753,2538.6,2538.5,0.6872]
[1749887615782,1.51708753,2538.6,2538.5,2.0216]
[1749887634697,1.04460753,2538.6,2538.5,2.0216]
[1749887634901,4.21540251,2539.3,2538.5,2.0216]
[1749887635202,0.47245,2538.8,2538.7,3.2078]
[1749887635495,0.47245,2538.8,2538.7,29.1244]
[1749887635703,1.51923293,2538.8,2538.7,29.1244]
[1749887635893,0.47245,2538.8,2538.7,29.1244]
[1749887636789,0.47245,2538.8,2538.7,11.3454]
[1749887636993,1.51424564,2538.8,2538.7,6.8026]
[1749887639802,1.51424564,2538.8,2538.7,0.6586]
[1749887640397,1.04179564,2538.8,2538.7,1.9557]
[1749887640596,0.47243,2538.9,2538.7,2.42815]
[1749887640796,0.47243,2538.9,2538.8,1.2971]
[1749887640996,1.51390447,2538.9,2538.8,1.2971]
[1749887644502,0.47243,2538.9,2538.8,1.2971]
[1749887645105,0.54052268,2538.9,2538.8,1.2971]
[1749887646105,0.47243,2538.9,2538.8,1.2971]
[1749887647907,1.51169683,2538.9,2538.8,1.2971]
[1749887648105,0.47244,2538.8,2538.7,27.7864]
[1749887649909,0.47244,2538.8,2538.7,29.1535]
[1749887658010,0.47244,2538.8,2538.7,5.2335]
[1749887658211,0.47244,2538.8,2538.7,27.7864]
[1749887659205,1.03977584,2538.8,2538.4,3.2078]
[1749887659410,0.47248,2538.6,2538.5,23.921]
[1749887659612,0.4725,2538.5,2538.4,3.2078]
[1749887659807,0.4725,2538.5,2538.4,27.1288]
[1749887661912,0.4725,2538.5,2538.4,3.2078]
[1749887662112,0.4725,2538.5,2538.4,27.1278]
[1749887662410,1.51256626,2538.5,2538.4,27.1278]
[1749887662815,0.4725,2538.5,2538.4,27.1278]
[1749887663310,1.51258616,2538.5,2538.4,27.1278]
[1749887667310,1.51258616,2538.5,2538.4,28.4968]
[1749887669114,1.51258616,2538.5,2538.4,4.5768]
[1749887669312,1.51258616,2538.5,2538.4,28.4978]
[1749887671518,1.51258616,2538.5,2538.4,27.1288]
[1749887672017,1.51258616,2538.5,2538.4,3.2078]
[1749887672318,0.47252,2538.4,2538.3,6.8079]
[1749887672513,0.47252,2538.4,2538.3,30.7299]
[1749887677022,1.51276994,2538.4,2538.3,30.7299]
[1749887677222,1.51274456,2538.4,2538.3,30.7299]
[1749887677623,1.51274456,2538.4,2538.3,30.067]
[1749887680424,0.47256,2538.2,2538.1,5.2253]
[1749887680620,0.47256,2538.2,2538.1,35.2923]
[1749887682021,0.47256,2538.2,2538.1,5.2253]
[1749887682325,0.47257,2538.1,2538.0,0.6397]
[1749887682521,0.47259,2538.0,2537.9,6.8064]
[1749887683019,1.51234636,2538.0,2537.9,30.7294]
[1749887684921,1.51234636,2538.0,2537.9,6.8064]
[1749887685226,1.51234636,2538.0,2537.9,30.7294]
[1749887690733,1.51234636,2538.0,2537.9,6.8064]
[1749887690943,1.51234636,2538.0,2537.9,0.6624]
[1749887691130,1.51234636,2538.0,2537.9,24.5874]
[1749887691633,0.47269,2537.5,2537.4,9.3528]
[1749887691829,0.47269,2537.5,2537.4,33.9598]
[1749887692232,0.47269,2537.5,2537.4,10.0348]
[1749887692433,0.47269,2537.5,2537.4,3.8898]
[1749887692632,0.47269,2537.5,2537.4,27.8158]
[1749887693034,0.47269,2537.5,2537.4,29.7291]
[1749887694832,0.47269,2537.5,2537.4,5.8031]
[1749887695039,0.47269,2537.5,2537.4,29.7291]
[1749887700946,0.47268,2537.6,2537.4,30.2018]
[1749887701243,0.47268,2537.6,2537.5,1.3213]
[1749887706545,1.51199892,2537.6,2537.5,1.3213]
[1749887706746,0.47268,2537.6,2537.5,1.3213]
[1749887707646,1.51324464,2537.6,2537.5,25.2493]
[1749887708847,0.47268,2537.6,2537.5,25.2493]
[1749887709547,1.51362276,2537.6,2537.5,25.2493]
[1749887712749,1.51362276,2537.6,2537.5,1.3213]
[1749887712956,1.51362276,2537.6,2537.5,25.2493]
[1749887716153,1.04094276,2537.6,2537.5,25.72199]
[1749887716353,0.47262,2537.9,2537.7,0.47265]
[1749887716556,0.47262,2537.9,2537.8,25.9875]
[1749887716755,1.51454149,2537.9,2537.8,26.66]
[1749887718359,1.04192149,2537.9,2537.8,27.13263]
[1749887719063,0.47259,2538.1,2537.9,0.47261]
[1749887719254,0.47259,2538.1,2538.0,23.926]
[1749887719458,1.51421815,2538.1,2538.0,27.1338]
[1749887719656,1.51421815,2538.1,2538.0,28.4286]
[1749887720762,1.04162815,2538.1,2538.0,28.4286]
[1749887721162,1.51419815,2538.1,2538.0,28.4286]
[1749887721962,1.51419815,2538.1,2538.0,34.5726]
[1749887722363,0.47257,2538.1,2538.0,34.5726]
[1749887729868,0.47257,2538.1,2538.0,34.5019]
[1749887732473,0.47257,2538.1,2538.0,4.5026]
[1749887732671,0.47257,2538.1,2538.0,33.2708]
[1749887735173,0.47257,2538.1,2538.0,3.2078]
[1749887735374,0.47257,2538.1,2538.0,27.1288]
[1749887737377,1.51214633,2538.1,2538.0,27.1288]
[1749887738277,1.51214633,2538.1,2537.8,1.3538]
[1749887738278,0.47261,2537.9,2537.8,1.3538]
[1749887738478,0.47261,2537.9,2537.8,31.4158]
[1749887739876,0.47263,2537.8,2537.7,3.2078]
[1749887740173,1.51269853,2537.8,2537.7,3.2078]
[1749887743683,0.47263,2537.8,2537.7,28.4317]
[1749887743884,0.47263,2537.8,2537.7,34.5737]
[1749887749588,0.47263,2537.8,2537.7,35.04635]
[1749887749791,0.6683,2538.2,2537.7,34.5737]
[1749887750089,0.47263,2537.9,2537.8,1.9293]
[1749887750591,1.51401341,2537.9,2537.8,1.9293]
[1749887752284,0.47263,2537.9,2537.8,1.9293]
[1749887752689,0.6683,2538.2,2537.8,2.40191]
[1749887752889,0.47259,2538.0,2537.9,25.2545]
[1749887753080,1.51394634,2538.0,2537.9,25.2545]
[1749887756187,0.47259,2538.0,2537.9,25.2545]
[1749887762594,0.47261,2537.9,2537.8,0.6472]
[1749887762793,0.47261,2537.9,2537.8,30.7032]
[1749887763098,0.47261,2537.9,2537.8,32.0271]
[1749887764502,0.47261,2537.9,2537.8,31.9329]
[1749887766401,0.47261,2537.9,2537.8,31.9319]
[1749887767102,0.47261,2537.9,2537.8,30.608]
[1749887767802,0.47261,2537.9,2537.8,0.553]
[1749887768004,0.47261,2537.9,2537.8,30.608]
[1749887769397,0.47263,2537.8,2537.7,3.2078]
[1749887769597,0.47263,2537.8,2537.7,33.2628]
[1749887769905,0.47263,2537.8,2537.7,3.2078]
[1749887770105,0.47263,2537.8,2537.7,33.2628]
[1749887775002,0.47263,2537.8,2537.7,33.73545]
[1749887775212,0.47263,2537.8,2537.7,33.2628]
[1749887776210,0.47263,2537.8,2537.7,33.73545]
[1749887776402,0.47263,2537.8,2537.7,33.2628]
[1749887778202,0.6403,2538.2,2537.7,33.2628]
[1749887778400,0.6403,2538.2,2537.8,1.74372]
[1749887778401,0.4726,2538.0,2537.8,1.74372]
[1749887778603,0.4726,2538.0,2537.9,28.3929]
[1749887778808,1.51560295,2538.0,2537.9,29.0351]
[1749887781903,1.04300295,2538.0,2537.9,29.50771]
[1749887782104,0.00590029,2538.4,2537.9,34.0351]
[1749887782305,0.00590029,2538.4,2538.3,3.68034]
[1749887782505,0.00590029,2538.4,2538.3,33.73234]
[1749887782901,0.00590029,2538.4,2538.3,36.86356897]
[1749887783215,0.00590029,2538.4,2538.3,34.38924]
[1749887783808,0.00590029,2538.4,2538.3,75.18924]
[1749887785307,0.00590029,2538.4,2538.3,74.7147]
[1749887785506,0.47842029,2538.4,2538.3,74.7147]
[1749887786014,0.00590029,2538.4,2538.3,75.18724]
[1749887787713,0.00590029,2538.4,2538.3,74.7147]
[1749887788122,0.00590029,2538.4,2538.3,75.18724]
[1749887795725,0.47249,2538.6,2538.4,0.47252]
[1749887795926,0.47249,2538.6,2538.5,23.906]
[1749887796119,0.687,2539.0,2538.5,23.906]
[1749887796323,0.47248,2538.7,2538.6,3.8786]
[1749887796725,0.47248,2538.7,2538.6,4.5467]
[1749887800628,0.47245,2538.8,2538.6,4.5467]
[1749887800836,0.47245,2538.8,2538.7,30.039]
[1749887801035,0.47834029,2538.9,2538.7,30.51146]
[1749887801227,0.47244,2538.8,2538.7,30.039]
[1749887802835,0.47834029,2538.9,2538.7,30.51146]
[1749887803024,0.47244,2538.8,2538.7,30.039]
[1749887804436,0.47834029,2538.9,2538.7,30.51146]
[1749887804631,0.47244,2538.8,2538.7,30.039]
[1749887806124,0.47834029,2538.9,2538.7,30.51146]
[1749887806329,0.47244,2538.8,2538.7,30.039]
[1749887806833,0.47246,2538.7,2538.6,4.5467]
[1749887807029,0.47246,2538.7,2538.6,34.5817]
[1749887807229,0.47246,2538.7,2538.6,33.2428]
[1749887809534,0.47246,2538.7,2538.4,1.16020029]
[1749887809739,0.47246,2538.7,2538.6,3.2078]
[1749887811341,0.47246,2538.7,2538.6,33.2428]
[1749887820147,0.47245,2538.8,2538.6,33.2428]
[1749887820350,0.47245,2538.8,2538.6,33.71528]
[1749887820647,0.47246,2538.7,2538.6,33.2428]
[1749887820846,0.47246,2538.8,2538.6,33.71528]
[1749887822148,0.00590029,2538.9,2538.6,33.2428]
[1749887822344,1.03722683,2538.8,2538.7,0.6696]
[1749887822549,1.03722683,2538.8,2538.7,25.04106]
[1749887822747,1.03722683,2538.8,2538.7,27.02376]
[1749887823048,0.00590029,2538.9,2538.8,0.47244]
[1749887823236,1.04297542,2538.9,2538.8,1.80394]
[1749887823751,0.00590029,2538.9,2538.8,1.80394]
[1749887828048,0.00590029,2538.9,2538.8,4.93516897]
[1749887828344,0.4723,2539.6,2538.9,0.47243]
[1749887828546,0.4723,2539.6,2539.5,3.2078]
[1749887828746,1.50779416,2539.6,2539.5,27.1038]
[1749887829251,0.4723,2539.6,2539.5,27.1038]
[1749887829452,1.5073579,2539.6,2539.5,27.1038]
[1749887829644,1.50735982,2539.6,2539.5,27.1038]
[1749887829845,0.4723,2539.6,2539.5,27.1038]
[1749887830042,1.50736616,2539.6,2539.5,27.1038]
[1749887830257,0.4723,2539.6,2539.5,27.1038]
[1749887830752,1.50704175,2539.6,2539.5,27.1038]
[1749887831054,1.50704175,2539.6,2539.5,23.896]
[1749887831648,0.4723,2539.6,2539.5,27.1038]
[1749887831850,1.50660148,2539.6,2539.5,27.1038]
[1749887832351,0.4723,2539.6,2539.5,27.1038]
[1749887832552,0.47231,2539.5,2539.4,6.131]
[1749887832750,0.47235,2539.3,2539.2,9.3378]
[1749887832948,0.47235,2539.3,2539.2,33.2308]
[1749887840160,0.06809268,2539.3,2539.2,35.04636]
[1749887840463,0.54044268,2539.3,2539.2,34.574]
[1749887841164,0.47235,2539.3,2539.2,34.574]
[1749887842257,0.47235,2539.3,2539.2,35.04637]
[1749887842458,0.47234,2539.4,2539.2,35.04637]
[1749887843163,0.47235,2539.3,2539.2,34.574]
[1749887844261,0.54044268,2539.3,2539.2,34.574]
[1749887846165,0.47235,2539.3,2539.2,34.574]
[1749887846559,0.6793,2539.7,2539.2,34.574]
[1749887846759,0.47235,2539.3,2539.2,34.574]
[1749887847865,0.47235,2539.3,2539.2,34.57]
[1749887848365,0.47235,2539.3,2539.2,35.212]
[1749887849065,0.47235,2539.3,2539.2,5.193]
[1749887849265,0.47235,2539.3,2539.2,35.212]
[1749887851660,0.47234,2539.4,2539.2,35.68436]
[1749887851869,0.47234,2539.4,2539.3,1.3744]
[1749887852760,1.50798354,2539.4,2539.3,1.3744]
[1749887854266,0.47235,2539.3,2539.2,3.8498]
[1749887854473,1.50799354,2539.3,2539.2,33.8628]
[1749887855964,1.50799354,2539.3,2539.2,35.1772]
[1749887857466,1.50866222,2539.3,2539.2,35.1772]
[1749887862877,1.50866222,2539.3,2539.2,35.1752]
[1749887864877,1.50866222,2539.3,2539.2,31.9674]
[1749887865175,1.50866222,2539.3,2539.2,35.1752]
[1749887865772,1.03631222,2539.3,2539.2,5.1642]
[1749887865969,0.6749,2539.7,2539.2,35.1742]
[1749887866172,0.47234,2539.4,2539.3,1.3307]
[1749887866373,0.47234,2539.4,2539.3,28.4225]
[1749887866572,1.50884369,2539.4,2539.3,28.4225]
[1749887868880,0.47235,2539.3,2539.2,0.642]
[1749887869082,1.50423063,2539.3,2539.2,30.652]
[1749887871384,1.03188063,2539.3,2539.2,31.12437]
[1749887877284,1.03188063,2539.3,2539.2,32.44967]
[1749887877484,0.47234,2539.4,2539.2,32.44967]
[1749887877687,0.47234,2539.4,2539.3,3.2078]
[1749887878186,1.50416423,2539.4,2539.3,3.2078]
[1749887880190,0.47234,2539.4,2539.3,3.2078]
[1749887880389,1.50419473,2539.4,2539.3,3.2078]
[1749887881896,1.57228741,2539.4,2539.3,3.2078]
[1749887882795,1.50419473,2539.4,2539.3,3.2078]
[1749887883394,1.03185473,2539.4,2539.3,3.68015]
[1749887883589,1.50418473,2539.4,2539.3,4.5825]
[1749887883790,0.47233,2539.4,2539.3,4.5825]
[1749887885694,0.47232,2539.5,2539.3,5.05484]
[1749887885888,0.47232,2539.5,2539.4,23.88]
[1749887886095,0.47232,2539.5,2539.4,24.5062]
[1749887887096,0.00590029,2539.8,2539.4,24.5062]
[1749887887286,0.00590029,2539.8,2539.7,3.68008]
[1749887887493,0.00590029,2539.8,2539.7,33.68208]
[1749887888292,0.47816029,2539.8,2539.7,33.2098]
[1749887888492,0.47816029,2539.8,2539.7,33.836]
[1749887888696,0.47231,2539.5,2539.4,9.3308]
[1749887889000,0.47231,2539.5,2539.4,33.2098]
[1749887893199,0.54039268,2539.6,2539.4,33.68213]
[1749887893900,0.4723,2539.6,2539.4,33.68213]
[1749887894199,0.47231,2539.5,2539.4,33.2098]
[1749887894401,0.4723,2539.6,2539.4,33.2098]
[1749887895106,0.4723,2539.6,2539.4,33.68213]
[1749887896102,0.4723,2539.6,2539.4,35.00413]
[1749887896702,0.4723,2539.6,2539.5,3.2078]
[1749887902205,1.49740521,2539.6,2539.5,27.0838]
[1749887903609,1.49740521,2539.6,2539.5,23.876]
[1749887908610,1.49740521,2539.6,2539.4,4.5298]
[1749887908611,0.47231,2539.5,2539.4,4.5298]
[1749887908811,0.47233,2539.4,2539.3,6.122]
[1749887909013,0.47237,2539.2,2539.1,9.3298]
[1749887909312,0.47237,2539.2,2539.1,33.2058]
[1749887909501,1.49771297,2539.2,2539.1,33.2058]
[1749887910307,1.49771297,2539.2,2539.1,33.2048]
[1749887910814,0.47237,2539.2,2539.1,33.2048]
[1749887911013,1.49753756,2539.2,2539.1,33.2068]
[1749887911313,0.47237,2539.2,2539.1,33.2068]
[1749887912913,0.47237,2539.2,2539.1,6.122]
[1749887913214,0.47237,2539.2,2539.1,29.999]
[1749887914404,0.47241,2539.0,2538.9,1.3417]
[1749887914609,0.47241,2539.0,2538.9,25.2187]
[1749887917315,0.47243,2538.9,2538.8,3.2078]
[1749887917510,0.47246,2538.7,2538.6,6.121]
[1749887918015,0.47246,2538.7,2538.6,23.878]
[1749887920511,0.47246,2538.7,2538.6,25.1866]
[1749887921209,0.47246,2538.8,2538.6,25.1866]
[1749887921407,0.47246,2538.7,2538.6,25.1866]
[1749887921715,0.47246,2538.7,2538.6,23.878]
[1749887930523,0.54055268,2538.7,2538.6,23.878]
[1749887932628,0.47246,2538.7,2538.6,23.878]
[1749887933317,0.47246,2538.7,2538.6,25.1462]
[1749887934728,1.18098,2539.1,2538.6,25.1462]
[1749887934921,1.02391866,2539.0,2538.7,1.3575]
[1749887935119,1.18098,2539.1,2538.7,1.3575]
[1749887935320,1.02416522,2539.0,2538.8,0.6786]
[1749887935521,0.47243,2538.9,2538.8,0.6786]
[1749887936516,1.49701904,2538.9,2538.8,0.6786]
[1749887939729,1.56511172,2538.9,2538.8,0.6786]
[1749887940631,1.49701904,2538.9,2538.8,0.6786]
[1749887944636,1.49909902,2538.9,2538.8,0.6786]
[1749887950342,1.49985794,2538.9,2538.8,0.6786]
[1749887960858,0.47248,2538.6,2538.5,9.9634]
[1749887961055,0.47248,2538.6,2538.5,4.5221]
[1749887961259,0.47248,2538.6,2538.5,34.5161]
[1749887961452,1.49990794,2538.6,2538.5,34.5161]
[1749887963161,0.47248,2538.6,2538.5,34.5161]
[1749887963357,0.47248,2538.6,2538.5,35.8894]
[1749887985676,0.47248,2538.6,2538.5,34.5081]
[1749887986380,1.50024079,2538.6,2538.5,34.5081]
[1749887986979,1.50024079,2538.6,2538.5,33.1938]
[1749887988177,0.4725,2538.5,2538.4,0.00590029]
[1749887988380,1.50005762,2538.5,2538.4,6.12190029]
[1749887988780,1.50005762,2538.5,2538.4,29.99090029]
[1749887989877,1.50005762,2538.5,2538.4,0.00590029]
[1749887990179,6.50005762,2538.5,2538.4,0.00590029]
[1749887990580,7.15875762,2538.5,2538.4,0.00590029]
[1749887992375,3.50305762,2538.5,2538.4,0.00590029]
[1749887999272,0.47259,2538.0,2537.9,9.9921]
[1749887999478,0.47259,2538.0,2537.9,33.8631]
[1749888000478,0.47259,2538.0,2537.9,35.1402]
[1749888002387,0.47259,2538.0,2537.9,11.2692]
[1749888002587,0.47259,2538.0,2537.9,35.1402]
[1749888003384,0.47259,2538.0,2537.9,11.2692]
[1749888004486,0.47259,2538.0,2537.9,35.1412]
[1749888004987,0.47259,2538.0,2537.9,11.2692]
[1749888005180,0.47259,2538.0,2537.9,0.6673]
[1749888005584,1.49848697,2538.0,2537.9,0.6673]
[1749888006087,0.47261,2537.9,2537.8,24.5307]
[1749888007788,0.47261,2537.9,2537.8,25.7728]
[1749888008988,0.47261,2537.9,2537.8,1.9018]
[1749888009189,0.47261,2537.9,2537.8,25.7738]
[1749888009685,1.497694,2537.9,2537.8,0.6597]
[1749888009886,0.47261,2537.9,2537.8,0.6597]
[1749888010088,1.49768554,2537.9,2537.8,0.6597]
[1749888010785,1.49768554,2537.9,2537.8,24.5327]
[1749888011092,0.47261,2537.9,2537.8,24.5327]
[1749888011286,1.4973901,2537.9,2537.8,24.5327]
[1749888011591,1.49738276,2537.9,2537.8,24.5327]
[1749888012092,0.47261,2537.9,2537.8,24.5327]
[1749888012393,1.49743078,2537.9,2537.8,24.5327]
[1749888013090,0.47261,2537.9,2537.8,0.6597]
[1749888013385,1.49753727,2537.9,2537.8,0.6597]
[1749888014689,1.49739573,2537.9,2537.8,0.6597]
[1749888014891,1.49739573,2537.9,2537.8,2.0342]
[1749888020900,1.49739573,2537.9,2537.8,2.10229268]
[1749888023994,1.49739573,2537.9,2537.8,2.0342]
[1749888026102,1.02478573,2537.9,2537.8,2.50683]
[1749888026301,0.47261,2537.9,2537.8,2.0342]
[1749888027105,0.47261,2537.9,2537.8,2.10229268]
[1749888027801,0.4726,2538.0,2537.8,7.57491268]
[1749888028003,0.4726,2538.0,2537.9,10.6636]
[1749888028305,0.4726,2538.0,2537.9,51.4636]
[1749888028805,0.4726,2538.0,2537.9,10.6636]
[1749888031601,0.47258,2538.1,2537.9,11.13621]
[1749888031801,0.47258,2538.1,2538.0,25.7862]
[1749888032506,0.00590029,2538.2,2538.0,25.7862]
[1749888032709,0.47846029,2538.2,2538.1,1.3147]
[1749888035610,0.47846029,2538.2,2538.1,31.2937]
[1749888039010,0.47846029,2538.2,2538.1,1.3147]
[1749888039210,0.47846029,2538.2,2538.1,31.2917]
[1749888040314,0.47257,2538.1,2538.0,0.6555]
[1749888040512,0.47257,2538.1,2538.0,30.6325]
[1749888040909,0.47257,2538.1,2538.0,0.6555]
[1749888041104,0.47257,2538.1,2538.0,30.6315]
[1749888046918,0.00590029,2538.2,2538.0,30.6315]
[1749888048018,0.00590029,2538.2,2538.0,33.8393]
[1749888048516,0.00590029,2538.2,2538.0,34.31189]
[1749888050323,0.00590029,2538.2,2538.1,0.47257]
[1749888054224,0.00590029,2538.2,2538.1,1.82787]
[1749888055626,1.03292955,2538.2,2538.1,0.47257]
[1749888055922,1.03292955,2538.2,2538.1,24.33457]
[1749888058728,1.03292955,2538.2,2538.0,9.3188]
[1749888058920,0.47259,2538.0,2537.9,4.1544]
[1749888059121,1.49961926,2538.0,2537.9,4.1544]
[1749888059329,2.32082926,2538.0,2537.9,2.8554]
[1749888059528,1.76639,2538.0,2537.9,2.8554]
[1749888059734,2.79356336,2538.0,2537.9,2.8554]
[1749888062338,2.32097336,2538.0,2537.9,3.32801]
[1749888062630,1.02717336,2538.0,2537.9,3.32801]
[1749888062836,1.49976336,2538.0,2537.9,2.8554]
[1749888064040,1.02717336,2538.0,2537.9,3.32801]
[1749888064841,1.02717336,2538.0,2537.9,4.58811]
[1749888065842,1.026275,2538.0,2537.9,4.58811]
[1749888066643,0.47847029,2538.2,2538.0,0.47258]
[1749888066944,1.02667577,2538.1,2538.0,25.58138]
[1749888068044,1.02673323,2538.1,2538.0,25.58138]
[1749888068943,0.00590029,2538.2,2538.1,0.47257]
[1749888069138,0.00590029,2538.2,2538.1,1.80277]
[1749888069340,1.03269272,2538.2,2538.1,1.80277]
[1749888069738,0.00590029,2538.2,2538.1,1.80277]
[1749888073450,0.47246,2538.7,2538.1,1.3302]
[1749888073640,1.49956104,2538.6,2538.4,3.68031]
[1749888073845,0.47248,2538.6,2538.5,23.86]
[1749888074048,1.49954978,2538.6,2538.5,23.86]
[1749888075152,1.49954978,2538.6,2538.5,24.3325]
[1749888075452,0.4725,2538.5,2538.4,3.2078]
[1749888075654,1.49956978,2538.5,2538.4,29.968]
[1749888076655,1.49956978,2538.5,2538.4,30.44052]
[1749888077148,1.02706978,2538.5,2538.4,30.44052]
[1749888079355,1.02630809,2538.5,2538.4,30.44052]
[1749888080152,0.47249,2538.6,2538.4,30.44052]
[1749888080554,0.6584,2538.7,2538.5,0.47249]
[1749888080850,1.13086,2538.7,2538.6,23.858]
[1749888081053,2.15712919,2538.7,2538.6,23.858]
[1749888085859,0.47248,2538.6,2538.5,0.5815]
[1749888086046,0.47252,2538.4,2538.3,0.7178]
[1749888086358,0.47263,2537.8,2537.7,23.86190029]
[1749888086850,1.49827118,2537.8,2537.7,23.86190029]
[1749888087453,1.02564118,2537.8,2537.7,24.33455029]
[1749888087855,1.02564118,2537.8,2537.7,23.86190029]
[1749888088249,0.47262,2537.9,2537.7,23.86190029]
[1749888088450,3.2078,2538.2,2537.7,23.86190029]
[1749888088451,0.47263,2537.8,2537.7,23.86190029]
[1749888094249,3.2078,2538.2,2537.7,27.06970029]